fUSD/lending_fUSD_20240212
["ID","MTS","AMOUNT","RATE_DAILY","PERIOD"]
[313824249,1707738650505,-178.30190912,0.00022997,2]
[313824250,1707738650516,-316.18094891,0.00022997,2]
[313824251,1707738650531,-179.80496733,0.00022998,2]
[313824252,1707738650542,-321.96726608,0.00022998,2]
[313824253,1707738650551,-221.93840552,0.00022998,2]
[313824254,1707738650562,-413.72986441,0.00022998,2]
[313824255,1707738650572,-155.25463852,0.00022998,2]
[313824256,1707738650581,-285.61170655,0.00022998,2]
[313824257,1707738650590,-2328.75332884,0.00022998,2]
[313824258,1707738650600,-401.81008,0.00022998,2]
[313824259,1707738650609,-155.0,0.00022998,2]
[313824260,1707738650620,-37023.72997922,0.00022998,2]
[313824261,1707738650629,-584.16439746,0.00022999,2]
[313824262,1707738650638,-500.0,0.00022999,2]
[313824263,1707738650648,-158.63832299,0.00022999,2]
[313824264,1707738650657,-500.0,0.00022999,2]
[313824265,1707738650666,-500.0,0.00022999,2]
[313824266,1707738650675,-496.26532787,0.00022999,2]
[313824267,1707738650684,-150.0,0.00022999,2]
[313824268,1707738650693,-150.0,0.00022999,2]
[313824269,1707738650702,-150.0,0.00022999,2]
[313824270,1707738650712,-150.0,0.00022999,2]
[313824271,1707738650721,-150.0,0.00022999,2]
[313824272,1707738650730,-150.0,0.00022999,2]
[313824273,1707738650739,-728.05009198,0.00023,3]
[313824274,1707738650749,-1473379.91618274,0.00023,2]
[313824275,1707738651065,-1661.60734328,0.00023,2]
[313824276,1707738651077,-23919.12,0.00023,2]
[313824277,1707738651094,-537.65208213,0.00023,2]
[313824278,1707738651473,413.47,0.00028,120]
[313824279,1707738651620,-365.52471753,0.00022672,2]
[313824280,1707738651631,-134.47528247,0.00022672,2]
[313824281,1707738651640,-299.33771753,0.00022674,2]
[313824282,1707738651657,-200.66228247,0.00022674,2]
[313824283,1707738651667,-818.70367138,0.000229,2]
[313824284,1707738651676,-297.58,0.00022946,2]
[313824285,1707738651685,-39770.62135209,0.00023,2]
[313824286,1707738651696,-306.21779093,0.00023,2]
[313824287,1707738652418,6.387,0.000224,8]
[313824289,1707738711267,988.09699467,0.00022399,2]
[313824290,1707738743887,2068.1,0.00021629,2]
[313824291,1707738773873,1023.1748287,0.00015,14]
[313824292,1707738783549,157.66,0.00021777,2]
[313824293,1707738794192,364.44524763,0.00022399,2]
[313824294,1707738796713,988.09699467,0.00022399,2]
[313824295,1707738817909,158.01,0.00021571,2]
[313824296,1707738864690,154.999999,0.00022,2]
[313824297,1707738864982,988.09699467,0.00022399,2]
[313824298,1707738902737,549.82975328,0.00022399,7]
[313824299,1707738920724,475.63986906,0.00022399,7]
[313824300,1707738948872,988.09699467,0.00022399,2]
[313824301,1707739015302,173.35,0.00019647,2]
[313824302,1707739015348,173.35,0.00021911,2]
[313824303,1707739022030,1244.48998613,0.00022197,2]
[313824304,1707739053843,205.0,0.0002228,2]
[313824305,1707739063863,160.39387963,0.00022334,2]
[313824306,1707739076513,577.13,0.00021565,2]
[313824307,1707739119423,567.41,0.00021565,2]
[313824308,1707739153711,1244.48998613,0.00022246,2]
[313824309,1707739184221,2000.0,0.00021565,2]
[313824310,1707739216880,250.0,0.00021918,2]
[313824311,1707739486374,156.01,0.00019836,2]
[313824312,1707739486781,156.01,0.000221,2]
[313824313,1707739543630,538.29,0.00021846,2]
[313824314,1707739618010,472.84,0.00021849,2]
[313824315,1707739692536,155.0,0.00022399,2]
[313824324,1707739773945,205.0,0.00022166,2]
[313824329,1707739793060,3233.0,0.00028,120]
[313824331,1707739831710,-300.0,0.000224,8]
[313824332,1707739831721,-463.01283785,0.000225,2]
[313824333,1707739831821,-401.82437314,0.000225,2]
[313824334,1707739831984,-1230.17297282,0.000225,2]
[313824350,1707739837835,-2962.89656123,0.000225,2]
[313824351,1707739837846,-600.0,0.000225,8]
[313824352,1707739837857,-879.05691181,0.00022573,2]
[313824353,1707739837869,-1000.0,0.000226,8]
[313824354,1707739837879,-150.0,0.00022669,2]
[313824355,1707739837891,-729.50850918,0.0002267,2]
[313824356,1707739837901,-24620.30144584,0.0002267,2]
[313824357,1707739837912,-334.81786902,0.0002267,2]
[313824358,1707739837922,-310.41389945,0.0002267,2]
[313824359,1707739837933,-266.25950682,0.0002267,2]
[313824360,1707739837943,-214.94989898,0.0002267,2]
[313824361,1707739837953,-299.99,0.0002267,7]
[313824362,1707739837964,-1509.76412729,0.00022671,2]
[313824363,1707739837974,-500.0,0.00022672,2]
[313824364,1707739837992,-500.0,0.00022672,2]
[313824365,1707739838002,-500.0,0.00022672,2]
[313824366,1707739838012,-500.0,0.00022672,2]
[313824367,1707739838022,-277.18853294,0.00022672,2]
[313824368,1707739838035,-222.81146706,0.00022672,2]
[313824369,1707739838046,-500.0,0.00022672,2]
[313824370,1707739838056,-500.0,0.00022672,2]
[313824371,1707739838068,-500.0,0.00022672,2]
[313824372,1707739838078,-506.96,0.00022672,2]
[313824373,1707739838088,-500.0,0.00022672,2]
[313824374,1707739838098,-500.0,0.00022672,2]
[313824375,1707739838109,-500.0,0.00022672,2]
[313824376,1707739838120,-500.0,0.00022672,2]
[313824377,1707739838130,-261.80036461,0.00022672,2]
[313824378,1707739838140,-500.0,0.00022672,2]
[313824379,1707739838151,-500.0,0.00022672,2]
[313824380,1707739838161,-500.0,0.00022672,2]
[313824381,1707739838171,-500.0,0.00022672,2]
[313824383,1707739838181,-462.90114415,0.00022672,2]
[313824385,1707739838191,-500.0,0.00022672,2]
[313824386,1707739838201,-500.0,0.00022672,2]
[313824387,1707739838211,-175.13029311,0.00022672,2]
[313824388,1707739838221,-500.0,0.00022672,2]
[313824389,1707739838232,-500.0,0.00022672,2]
[313824390,1707739838242,-500.0,0.00022672,2]
[313824391,1707739838253,-500.0,0.00022672,2]
[313824392,1707739838264,-500.0,0.00022672,2]
[313824393,1707739838275,-500.0,0.00022672,2]
[313824394,1707739838285,-500.0,0.00022672,2]
[313824395,1707739838296,-500.0,0.00022672,2]
[313824396,1707739838306,-500.0,0.00022672,2]
[313824397,1707739838318,-500.0,0.00022672,2]
[313824398,1707739838329,-435.1879772,0.00022672,2]
[313824399,1707739838340,-500.0,0.00022672,2]
[313824400,1707739838350,-500.0,0.00022672,2]
[313824401,1707739838361,-500.0,0.00022672,2]
[313824402,1707739838372,-500.0,0.00022672,2]
[313824403,1707739838383,-500.0,0.00022672,2]
[313824404,1707739838394,-500.0,0.00022672,2]
[313824405,1707739838404,-32.88570309,0.00022672,10]
[313824406,1707739838418,-280.95252029,0.00022672,10]
[313824407,1707739838429,-1339.21,0.00022672,2]
[313824408,1707739838440,-5494.53,0.00022672,2]
[313824409,1707739838451,-9999.99,0.00022672,2]
[313824410,1707739838463,-500.0,0.00022672,2]
[313824411,1707739838473,-2060.05,0.00022672,2]
[313824412,1707739838482,-500.0,0.00022672,2]
[313824413,1707739838492,-500.0,0.00022672,2]
[313824414,1707739838501,-500.0,0.00022672,2]
[313824415,1707739838511,-500.0,0.00022672,2]
[313824416,1707739838521,-500.0,0.00022672,2]
[313824417,1707739838530,-500.0,0.00022672,2]
[313824418,1707739838539,-3920.31,0.00022672,2]
[313824419,1707739838548,-500.0,0.00022672,2]
[313824420,1707739838558,-500.0,0.00022672,2]
[313824421,1707739838568,-500.0,0.00022672,2]
[313824422,1707739838577,-1500.71,0.00022672,2]
[313824423,1707739838586,-696.17,0.00022672,2]
[313824424,1707739838595,-929.48,0.00022672,2]
[313824425,1707739838605,-500.0,0.00022672,2]
[313824426,1707739838614,-1098.65,0.00022672,2]
[313824427,1707739838623,-500.0,0.00022672,2]
[313824428,1707739839094,-500.0,0.00022672,2]
[313824429,1707739839117,-806.38,0.00022672,2]
[313824430,1707739839136,-3475.46,0.00022672,2]
[313824431,1707739839150,-500.0,0.00022672,2]
[313824432,1707739839160,-500.0,0.00022672,2]
[313824433,1707739839170,-500.0,0.00022672,2]
[313824434,1707739839179,-500.0,0.00022672,2]
[313824435,1707739839188,-500.0,0.00022672,2]
[313824436,1707739839197,-500.0,0.00022672,2]
[313824437,1707739839206,-887.91,0.00022672,2]
[313824438,1707739839215,-1240.58,0.00022672,2]
[313824439,1707739839224,-500.0,0.00022672,2]
[313824440,1707739839237,-500.0,0.00022672,2]
[313824441,1707739839246,-500.0,0.00022672,2]
[313824442,1707739839256,-500.0,0.00022672,2]
[313824443,1707739839265,-500.0,0.00022672,2]
[313824444,1707739839275,-122.42547971,0.00022672,2]
[313824445,1707739839641,-732.43466889,0.00022672,2]
[313824446,1707739839653,-741.27723955,0.00022672,2]
[313824447,1707739839665,-420.8888349,0.00022672,2]
[313824448,1707739839676,-313.89851893,0.00022672,2]
[313824449,1707739839696,-549.20525802,0.00022672,2]
[313824450,1707739839705,-500.0,0.00022672,2]
[313824451,1707739839715,-500.0,0.00022672,2]
[313824452,1707739839724,-902.64,0.00022672,2]
[313824453,1707739839734,-915.22,0.00022672,2]
[313824454,1707739839743,-500.0,0.00022672,2]
[313824455,1707739839752,-500.0,0.00022672,2]
[313824456,1707739839761,-2192.0,0.00022672,2]
[313824457,1707739839770,-300.16790613,0.00022672,2]
[313824458,1707739839795,-374.16160013,0.00022672,2]
[313824459,1707739839806,-310.42049374,0.00022672,2]
[313824460,1707739839816,-378.07950626,0.00022672,2]
[313824461,1707739839833,-121.92049374,0.00022672,2]
[313824462,1707739839843,-422.46121284,0.00022672,2]
[313824466,1707739840371,-1101.41878716,0.00022672,2]
[313824467,1707739840381,-336.29921284,0.00022672,2]
[313824468,1707739840429,-163.70078716,0.00022672,2]
[313824469,1707739840438,-213.21111299,0.00022672,2]
[313824470,1707739840450,-286.78888701,0.00022672,2]
[313824471,1707739840460,-537.32281299,0.00022672,2]
[313824472,1707739840471,-487.06718701,0.00022672,2]
[313824473,1707739840481,-500.0,0.00022672,2]
[313824474,1707739840491,-2566.67,0.00022672,2]
[313824475,1707739840501,-500.0,0.00022672,2]
[313824476,1707739840510,-1288.71,0.00022672,2]
[313824477,1707739840519,-1221.54,0.00022672,2]
[313824478,1707739840528,-225.0844733,0.00022672,2]
[313824479,1707739840540,-2667.3755267,0.00022672,2]
[313824480,1707739840549,-500.0,0.00022672,2]
[313824481,1707739840557,-500.0,0.00022672,2]
[313824482,1707739840567,-1309.74,0.00022672,2]
[313824483,1707739840576,-500.0,0.00022672,2]
[313824484,1707739840585,-133.27479632,0.00022672,2]
[313824485,1707739840597,-259.41654144,0.00022672,2]
[313824486,1707739840608,-107.30866224,0.00022672,2]
[313824487,1707739840617,-451.28988814,0.00022672,2]
[313824488,1707739840628,-300.0,0.00022672,2]
[313824489,1707739840644,-1145.14011186,0.00022672,2]
[313824490,1707739840653,-514.17,0.00022672,2]
[313824491,1707739840662,-760.5,0.00022672,2]
[313824492,1707739840671,-1066.63,0.00022672,2]
[313824493,1707739840680,-500.0,0.00022672,2]
[313824494,1707739840689,-444.13071822,0.00022672,2]
[313824495,1707739841249,-55.86928178,0.00022672,2]
[313824496,1707739841259,-500.0,0.00022672,2]
[313824497,1707739841269,-1127.39,0.00022672,2]
[313824498,1707739841278,-500.0,0.00022672,2]
[313824499,1707739841287,-3150.28,0.00022672,2]
[313824500,1707739841296,-501.14,0.00022672,2]
[313824501,1707739841306,-500.0,0.00022672,2]
[313824502,1707739841315,-500.0,0.00022672,2]
[313824503,1707739841325,-9536.12,0.00022672,2]
[313824504,1707739841334,-500.0,0.00022672,2]
[313824505,1707739841343,-500.0,0.00022672,2]
[313824506,1707739841353,-504.17,0.00022672,2]
[313824507,1707739841362,-535.71,0.00022673,2]
[313824508,1707739841371,-500.0,0.00022673,2]
[313824509,1707739841381,-572.78,0.00022673,2]
[313824510,1707739841390,-500.0,0.00022673,2]
[313824511,1707739841400,-500.0,0.00022673,2]
[313824512,1707739841409,-500.0,0.00022673,2]
[313824513,1707739841419,-243.14754657,0.00022673,2]
[313824514,1707739841428,-500.0,0.00022673,2]
[313824515,1707739841437,-500.0,0.00022673,2]
[313824516,1707739841446,-500.0,0.00022673,2]
[313824517,1707739841456,-643.46,0.00022673,2]
[313824518,1707739841465,-500.0,0.00022673,2]
[313824519,1707739841474,-50.62433499,0.00022673,2]
[313824520,1707739841486,-518.42566501,0.00022673,2]
[313824521,1707739841495,-79.58598967,0.00022673,2]
[313824522,1707739841507,-420.41401033,0.00022673,2]
[313824523,1707739841516,-500.0,0.00022673,2]
[313824524,1707739841525,-500.0,0.00022673,2]
[313824525,1707739841534,-215.9693111,0.00022673,2]
[313824526,1707739841545,-284.0306889,0.00022673,2]
[313824527,1707739841554,-267.42867441,0.00022673,2]
[313824534,1707739842833,-232.57132559,0.00022673,2]
[313824535,1707739842842,-500.0,0.00022673,2]
[313824536,1707739842851,-500.0,0.00022673,2]
[313824537,1707739842863,-522.69,0.00022673,2]
[313824538,1707739842874,-500.0,0.00022673,2]
[313824539,1707739842883,-500.0,0.00022673,2]
[313824540,1707739842893,-526.94,0.00022673,2]
[313824541,1707739842902,-500.0,0.00022673,2]
[313824542,1707739842910,-500.0,0.00022673,2]
[313824543,1707739842919,-500.0,0.00022673,2]
[313824544,1707739842929,-500.0,0.00022673,2]
[313824545,1707739842938,-500.0,0.00022673,2]
[313824546,1707739842948,-500.0,0.00022673,2]
[313824547,1707739842970,-500.0,0.00022673,2]
[313824548,1707739842981,-500.0,0.00022673,2]
[313824549,1707739842990,-500.0,0.00022673,2]
[313824550,1707739843003,-500.0,0.00022673,2]
[313824551,1707739843012,-500.0,0.00022673,2]
[313824552,1707739843022,-500.0,0.00022673,2]
[313824553,1707739843032,-500.0,0.00022673,2]
[313824554,1707739843042,-500.0,0.00022673,2]
[313824555,1707739843051,-500.0,0.00022673,2]
[313824556,1707739843061,-500.0,0.00022673,2]
[313824557,1707739843072,-500.0,0.00022673,2]
[313824558,1707739843081,-500.0,0.00022673,2]
[313824559,1707739843091,-500.0,0.00022673,2]
[313824560,1707739843101,-500.0,0.00022673,2]
[313824561,1707739843111,-500.0,0.00022673,2]
[313824562,1707739843120,-500.0,0.00022673,2]
[313824563,1707739843130,-500.0,0.00022673,2]
[313824564,1707739843139,-500.0,0.00022673,2]
[313824565,1707739843149,-500.0,0.00022673,2]
[313824566,1707739843159,-500.0,0.00022673,2]
[313824568,1707739843169,-500.0,0.00022673,2]
[313824569,1707739843178,-500.0,0.00022673,2]
[313824570,1707739843189,-500.0,0.00022673,2]
[313824571,1707739843198,-500.0,0.00022673,2]
[313824572,1707739843208,-500.0,0.00022673,2]
[313824573,1707739843217,-500.0,0.00022673,2]
[313824574,1707739843227,-500.0,0.00022673,2]
[313824575,1707739843237,-500.0,0.00022673,2]
[313824576,1707739843246,-500.0,0.00022673,2]
[313824577,1707739843256,-500.0,0.00022673,2]
[313824578,1707739843266,-500.0,0.00022673,2]
[313824579,1707739843276,-500.0,0.00022673,2]
[313824580,1707739843286,-500.0,0.00022673,2]
[313824581,1707739843295,-336.41928089,0.00022673,2]
[313824582,1707739843305,-500.0,0.00022673,2]
[313824583,1707739843315,-500.0,0.00022673,2]
[313824584,1707739843326,-500.0,0.00022673,2]
[313824585,1707739843336,-500.0,0.00022673,2]
[313824586,1707739843346,-500.0,0.00022673,2]
[313824587,1707739843356,-500.0,0.00022673,2]
[313824588,1707739843366,-500.0,0.00022673,2]
[313824589,1707739843376,-500.0,0.00022673,2]
[313824590,1707739843390,-500.0,0.00022673,2]
[313824591,1707739843400,-500.0,0.00022673,2]
[313824592,1707739843410,-500.0,0.00022673,2]
[313824593,1707739843420,-500.0,0.00022673,2]
[313824594,1707739843430,-500.0,0.00022673,2]
[313824595,1707739843440,-500.0,0.00022673,2]
[313824596,1707739843450,-500.0,0.00022673,2]
[313824597,1707739843460,-500.0,0.00022673,2]
[313824598,1707739843470,-500.0,0.00022673,2]
[313824599,1707739843480,-513.64,0.00022673,2]
[313824600,1707739843489,-500.0,0.00022673,2]
[313824601,1707739843498,-500.0,0.00022673,2]
[313824602,1707739843508,-500.0,0.00022673,2]
[313824603,1707739843517,-500.0,0.00022673,2]
[313824604,1707739843526,-500.0,0.00022673,2]
[313824605,1707739843535,-323.92687449,0.00022673,2]
[313824606,1707739843550,-176.07312551,0.00022673,2]
[313824607,1707739843559,-500.0,0.00022673,2]
[313824608,1707739843569,-500.0,0.00022673,2]
[313824609,1707739843578,-500.0,0.00022673,2]
[313824610,1707739843588,-500.0,0.00022673,2]
[313824611,1707739843597,-220.17687449,0.00022673,2]
[313824612,1707739843610,-279.82312551,0.00022673,2]
[313824613,1707739843619,-433.59951155,0.00022673,2]
[313824614,1707739843631,-66.40048845,0.00022673,2]
[313824615,1707739843641,-569.6261814,0.00022673,2]
[313824616,1707739843650,-500.0,0.00022673,2]
[313824617,1707739843660,-56.97089175,0.00022673,2]
[313824618,1707739843673,-443.02910825,0.00022673,2]
[313824619,1707739843683,-361.52275,0.00022673,2]
[313824620,1707739843693,-140.52814175,0.00022673,2]
[313824621,1707739843705,-125.80146534,0.00022673,2]
[313824622,1707739843714,-500.0,0.00022673,2]
[313824623,1707739843724,-500.0,0.00022673,2]
[313824624,1707739843733,-361.81949684,0.00022673,2]
[313824625,1707739844013,-138.18050316,0.00022673,2]
[313824626,1707739844023,-136.9888563,0.00022673,2]
[313824627,1707739844040,-363.0111437,0.00022673,2]
[313824628,1707739844050,-500.0,0.00022673,2]
[313824629,1707739844059,-150.0,0.00022673,2]
[313824630,1707739844069,-500.0,0.00022673,2]
[313824631,1707739844078,-8.51392463,0.00022673,2]
[313824632,1707739844090,-210.51607537,0.00022673,2]
[313824633,1707739844099,-500.0,0.00022673,2]
[313824634,1707739844108,-494.54775503,0.00022673,2]
[313824635,1707739844117,-419.82810726,0.00022673,2]
[313824636,1707739844127,-500.0,0.00022673,2]
[313824637,1707739844136,-500.0,0.00022673,2]
[313824638,1707739844145,-500.0,0.00022673,2]
[313824639,1707739844155,-500.0,0.00022673,2]
[313824640,1707739844164,-1543.75,0.00022673,2]
[313824641,1707739844174,-500.0,0.00022673,2]
[313824642,1707739844183,-500.0,0.00022673,2]
[313824643,1707739844192,-500.0,0.00022673,2]
[313824644,1707739844201,-500.0,0.00022673,2]
[313824645,1707739844211,-500.0,0.00022673,2]
[313824646,1707739844220,-500.0,0.00022673,2]
[313824647,1707739844230,-500.0,0.00022673,2]
[313824648,1707739844239,-616.89970256,0.00022673,2]
[313824649,1707739844248,-500.0,0.00022673,2]
[313824650,1707739844258,-317.47672982,0.00022673,2]
[313824651,1707739844268,-500.0,0.00022673,2]
[313824652,1707739844278,-44.69795237,0.00022673,2]
[313824653,1707739844290,-455.30204763,0.00022673,2]
[313824654,1707739844300,-500.0,0.00022673,2]
[313824655,1707739844310,-500.0,0.00022673,2]
[313824656,1707739844320,-608.87863817,0.00022673,2]
[313824657,1707739844329,-500.0,0.00022673,2]
[313824658,1707739844338,-500.0,0.00022673,2]
[313824659,1707739844349,-500.0,0.00022673,2]
[313824660,1707739844358,-500.0,0.00022673,2]
[313824661,1707739844368,-208.67626869,0.00022673,2]
[313824662,1707739844378,-500.0,0.00022673,2]
[313824663,1707739844387,-500.0,0.00022673,2]
[313824664,1707739844396,-500.0,0.00022673,2]
[313824665,1707739844405,-500.0,0.00022673,2]
[313824666,1707739844415,-500.0,0.00022673,2]
[313824667,1707739844424,-500.0,0.00022673,2]
[313824668,1707739844433,-500.0,0.00022673,2]
[313824669,1707739844442,-500.0,0.00022673,2]
[313824670,1707739844451,-500.0,0.00022673,2]
[313824671,1707739844461,-500.0,0.00022673,2]
[313824672,1707739844471,-500.0,0.00022673,2]
[313824673,1707739844480,-500.0,0.00022673,2]
[313824674,1707739844489,-19878.69,0.00022673,2]
[313824675,1707739844499,-11868.17,0.00022673,2]
[313824676,1707739844507,-3002.91,0.00022673,2]
[313824677,1707739844517,-500.0,0.00022673,2]
[313824678,1707739844527,-500.0,0.00022673,2]
[313824679,1707739844537,-500.0,0.00022673,2]
[313824680,1707739844546,-500.0,0.00022673,2]
[313824681,1707739844557,-665.67,0.00022673,2]
[313824682,1707739844567,-500.0,0.00022673,2]
[313824683,1707739844581,-500.0,0.00022673,2]
[313824684,1707739844593,-500.0,0.00022673,2]
[313824685,1707739844604,-178.77108856,0.00022673,2]
[313824686,1707739844613,-500.0,0.00022673,2]
[313824687,1707739844623,-500.0,0.00022673,2]
[313824688,1707739844633,-500.0,0.00022673,2]
[313824689,1707739844643,-500.0,0.00022673,2]
[313824690,1707739844652,-654.75,0.00022673,2]
[313824691,1707739844662,-500.0,0.00022673,2]
[313824692,1707739844671,-500.0,0.00022673,2]
[313824693,1707739844681,-1290.09,0.00022673,2]
[313824694,1707739844691,-500.0,0.00022673,2]
[313824695,1707739844701,-500.0,0.00022673,2]
[313824696,1707739844710,-500.0,0.00022673,2]
[313824697,1707739844721,-500.0,0.00022673,2]
[313824698,1707739844731,-500.0,0.00022673,2]
[313824699,1707739844741,-1177.55,0.00022673,2]
[313824700,1707739844750,-500.0,0.00022673,2]
[313824701,1707739844759,-500.0,0.00022673,2]
[313824702,1707739844769,-391.74,0.00022673,2]
[313824703,1707739844778,-500.0,0.00022673,2]
[313824704,1707739844789,-500.0,0.00022673,2]
[313824705,1707739844799,-500.0,0.00022673,2]
[313824706,1707739844808,-869.38,0.00022673,2]
[313824707,1707739844818,-500.0,0.00022673,2]
[313824708,1707739844830,-500.0,0.00022673,2]
[313824709,1707739844840,-500.0,0.00022673,2]
[313824710,1707739844849,-2733.12,0.00022673,2]
[313824711,1707739844861,-500.0,0.00022673,2]
[313824712,1707739844871,-522.55,0.00022673,2]
[313824713,1707739844882,-500.0,0.00022673,2]
[313824714,1707739844891,-500.0,0.00022673,2]
[313824715,1707739844902,-500.0,0.00022673,2]
[313824716,1707739844912,-500.0,0.00022673,2]
[313824717,1707739844922,-500.0,0.00022673,2]
[313824718,1707739844932,-583.13,0.00022673,2]
[313824719,1707739844942,-500.0,0.00022673,2]
[313824720,1707739844951,-500.0,0.00022673,2]
[313824721,1707739844960,-500.0,0.00022673,2]
[313824722,1707739844970,-500.0,0.00022673,2]
[313824723,1707739844979,-500.0,0.00022673,2]
[313824724,1707739844989,-500.0,0.00022673,2]
[313824725,1707739845000,-500.0,0.00022673,2]
[313824726,1707739845009,-500.0,0.00022673,2]
[313824727,1707739845018,-2675.25,0.00022673,2]
[313824728,1707739845027,-646.89,0.00022673,2]
[313824729,1707739845037,-500.0,0.00022673,2]
[313824730,1707739845046,-500.0,0.00022673,2]
[313824731,1707739845055,-500.0,0.00022673,2]
[313824732,1707739845065,-500.0,0.00022673,2]
[313824733,1707739845075,-500.0,0.00022673,2]
[313824734,1707739845085,-500.0,0.00022673,2]
[313824735,1707739845094,-500.0,0.00022673,2]
[313824736,1707739845103,-2856.37,0.00022673,2]
[313824737,1707739845112,-500.0,0.00022673,2]
[313824738,1707739845121,-500.0,0.00022673,2]
[313824739,1707739845130,-500.0,0.00022673,2]
[313824740,1707739845139,-500.0,0.00022673,2]
[313824741,1707739845148,-500.0,0.00022673,2]
[313824742,1707739845157,-1588.01,0.00022673,2]
[313824743,1707739845166,-1260.72,0.00022673,2]
[313824744,1707739845175,-500.0,0.00022673,2]
[313824745,1707739845184,-500.0,0.00022673,2]
[313824746,1707739845193,-500.0,0.00022673,2]
[313824747,1707739845202,-500.0,0.00022673,2]
[313824748,1707739845211,-500.0,0.00022673,2]
[313824749,1707739845221,-657.53,0.00022673,2]
[313824750,1707739845230,-565.05,0.00022673,2]
[313824751,1707739845239,-500.0,0.00022673,2]
[313824752,1707739845248,-500.0,0.00022673,2]
[313824753,1707739845257,-500.0,0.00022673,2]
[313824754,1707739845267,-500.0,0.00022673,2]
[313824755,1707739845276,-500.0,0.00022673,2]
[313824756,1707739845286,-250.0,0.00022673,2]
[313824757,1707739845295,-500.0,0.00022673,2]
[313824758,1707739845304,-500.0,0.00022673,2]
[313824759,1707739845314,-2002.69,0.00022673,2]
[313824760,1707739845325,-500.0,0.00022673,2]
[313824761,1707739845334,-500.0,0.00022673,2]
[313824762,1707739845345,-1097.07,0.00022673,2]
[313824763,1707739845354,-500.0,0.00022673,2]
[313824764,1707739845363,-500.0,0.00022673,2]
[313824765,1707739845373,-582.7,0.00022673,2]
[313824766,1707739845383,-500.0,0.00022673,2]
[313824767,1707739845393,-500.0,0.00022673,2]
[313824768,1707739845403,-500.0,0.00022673,2]
[313824769,1707739845412,-500.0,0.00022673,2]
[313824770,1707739845421,-500.0,0.00022673,2]
[313824771,1707739845430,-500.0,0.00022673,2]
[313824772,1707739845440,-500.0,0.00022673,2]
[313824773,1707739845449,-500.0,0.00022673,2]
[313824774,1707739845458,-4799.26,0.00022673,2]
[313824775,1707739845468,-500.0,0.00022673,2]
[313824776,1707739845477,-500.0,0.00022673,2]
[313824777,1707739845486,-500.0,0.00022673,2]
[313824778,1707739845496,-1234.67,0.00022673,2]
[313824779,1707739845506,-500.0,0.00022673,2]
[313824780,1707739845515,-500.0,0.00022673,2]
[313824781,1707739845524,-500.0,0.00022673,2]
[313824782,1707739845534,-560.7765185,0.00022673,2]
[313824784,1707739845543,-936.13,0.00022673,2]
[313824786,1707739845552,-1860.29,0.00022673,2]
[313824788,1707739845561,-557.0485813,0.00022673,2]
[313824790,1707739845572,-500.0,0.00022673,2]
[313824792,1707739845581,-500.0,0.00022673,2]
[313824794,1707739845591,-500.0,0.00022673,2]
[313824796,1707739845600,-281.80782244,0.00022673,2]